bitfinex/quotes_SOLUSD_20230116
["timestamp","ask_amount","ask_price","bid_price","bid_amount"]
[1673905653937,20.0,23.594,23.571,20.0]
[1673905654146,20.0,23.594,23.572,37.0]
[1673905654358,20.0,23.594,23.573,20.0]
[1673905654581,20.0,23.594,23.574,37.0]
[1673905654897,20.0,23.594,23.574,58.46196354]
[1673905655103,20.0,23.594,23.575,20.0]
[1673905655315,17.0,23.593,23.577,20.0]
[1673905655530,117.9282,23.595,23.578,17.0]
[1673905655841,117.9282,23.595,23.579,20.0]
[1673905656059,117.9282,23.595,23.58,17.0]
[1673905656366,20.0,23.594,23.58,17.0]
[1673905656889,20.0,23.594,23.579,41.46196354]
[1673905657113,20.0,23.594,23.579,20.0]
[1673905657420,20.0,23.594,23.576,20.0]
[1673905657617,31.81,23.593,23.575,20.0]
[1673905657825,48.81,23.593,23.575,20.0]
[1673905658045,20.0,23.592,23.575,20.0]
[1673905658251,17.0,23.591,23.575,20.0]
[1673905658470,20.0,23.59,23.575,20.0]
[1673905660474,20.0,23.592,23.575,41.46196354]
[1673905661000,20.0,23.592,23.577,20.0]
[1673905661186,20.0,23.592,23.578,37.0]
[1673905662374,20.0,23.596,23.578,58.46196354]
[1673905662557,31.8,23.604,23.579,31.83]
[1673905662769,113.9255,23.606,23.579,31.83]
[1673905662770,145.7155,23.606,23.58,20.0]
[1673905662979,145.7155,23.606,23.582,20.0]
[1673905663185,145.7155,23.606,23.583,20.0]
[1673905663398,145.7155,23.606,23.584,17.0]
[1673905663609,145.7155,23.606,23.585,20.0]
[1673905663848,20.0,23.603,23.586,17.0]
[1673905664364,20.0,23.603,23.587,20.0]
[1673905666238,20.0,23.603,23.588,17.0]
[1673905666448,20.0,23.603,23.589,20.0]
[1673905669401,20.0,23.603,23.586,20.0]
[1673905669621,20.0,23.603,23.587,17.0]
[1673905669810,20.0,23.603,23.588,20.0]
[1673905670028,20.0,23.603,23.589,17.0]
[1673905671804,20.0,23.603,23.588,20.0]
[1673905672016,20.0,23.601,23.586,20.0]
[1673905672248,20.0,23.601,23.585,20.0]
[1673905673493,17.0,23.6,23.585,20.0]
[1673905673695,31.8,23.599,23.572,31.84]
[1673905674027,37.0,23.598,23.573,40.0]
[1673905674240,31.81,23.597,23.573,20.0]
[1673905674429,17.0,23.596,23.573,20.0]
[1673905674637,31.81,23.595,23.573,41.46196354]
[1673905674972,20.0,23.601,23.575,20.0]
[1673905675184,20.0,23.601,23.576,31.83]
[1673905675371,20.0,23.601,23.577,37.0]
[1673905675581,20.0,23.601,23.578,20.0]
[1673905675797,20.0,23.599,23.579,17.0]
[1673905676030,20.0,23.599,23.58,20.0]
[1673905676336,20.0,23.597,23.578,20.0]
[1673905677268,20.0,23.597,23.579,17.0]
[1673905677479,20.0,23.597,23.58,20.0]
[1673905677795,20.0,23.597,23.581,17.0]
[1673905678014,20.0,23.597,23.58,20.0]
[1673905678217,20.0,23.597,23.578,20.0]
[1673905678437,20.0,23.597,23.58,20.0]
[1673905678633,20.0,23.597,23.581,17.0]
[1673905678864,20.0,23.597,23.582,20.0]
[1673905679484,31.8,23.6,23.582,41.46196354]
[1673905679696,145.7155,23.606,23.583,17.0]
[1673905679917,145.7155,23.606,23.584,20.0]
[1673905680241,20.0,23.599,23.572,108.8171]
[1673905680461,51.8,23.599,23.572,108.8171]
[1673905680767,51.8,23.599,23.573,41.46196354]
[1673905680972,17.0,23.598,23.573,41.46196354]
[1673905681165,51.81,23.597,23.573,41.46196354]
[1673905681378,17.0,23.596,23.573,41.46196354]
[1673905681604,17.0,23.596,23.575,20.0]
[1673905681797,17.0,23.596,23.576,17.0]
[1673905682230,108.9842,23.595,23.577,20.0]
[1673905682440,108.9842,23.595,23.578,17.0]
[1673905682764,108.9842,23.595,23.579,20.0]
[1673905682976,108.9842,23.595,23.58,17.0]
[1673905683376,20.0,23.594,23.58,17.0]
[1673905685180,31.8,23.598,23.581,40.0]
[1673905685391,20.0,23.599,23.583,20.0]
[1673905685593,51.8,23.603,23.584,17.0]
[1673905685807,51.8,23.603,23.585,20.0]
[1673905686005,20.0,23.603,23.586,17.0]
[1673905686214,20.0,23.603,23.587,20.0]
[1673905686428,20.0,23.603,23.588,17.0]
[1673905686759,20.0,23.603,23.589,20.0]
[1673905688964,20.0,23.603,23.59,17.0]
[1673905689367,20.0,23.603,23.589,20.0]
[1673905689583,20.0,23.603,23.585,20.0]
[1673905689793,20.0,23.603,23.586,17.0]
[1673905690027,20.0,23.603,23.587,20.0]
[1673905690339,20.0,23.603,23.588,17.0]
[1673905690741,20.0,23.603,23.589,20.0]
[1673905691397,17.0,23.602,23.589,20.0]
[1673905691601,20.0,23.6,23.584,20.0]
[1673905691923,17.0,23.599,23.584,20.0]
[1673905692108,20.0,23.598,23.576,21.23059325]
[1673905692312,20.0,23.598,23.576,132.75209325]
[1673905692313,51.8,23.598,23.576,132.75209325]
[1673905692526,20.0,23.598,23.578,20.0]
[1673905692961,20.0,23.598,23.578,41.23059325]
[1673905693373,20.0,23.598,23.58,20.0]
[1673905693583,20.0,23.598,23.581,20.0]
[1673905694759,20.0,23.598,23.582,17.0]
[1673905695262,20.0,23.598,23.583,20.0]
[1673905695474,20.0,23.598,23.584,17.0]
[1673905695685,20.0,23.598,23.585,20.0]
[1673905696958,31.8,23.602,23.586,20.0]
[1673905697160,20.0,23.603,23.587,37.0]
[1673905699159,20.0,23.603,23.587,20.0]
[1673905699685,20.0,23.603,23.584,20.0]
[1673905699897,20.0,23.603,23.585,17.0]
[1673905700106,19.0,23.603,23.586,20.0]
[1673905700434,19.0,23.603,23.587,20.0]
[1673905700863,18.0,23.603,23.587,20.0]
[1673905701272,18.0,23.603,23.588,17.0]
[1673905701789,18.0,23.603,23.589,20.0]
[1673905704329,17.0,23.602,23.584,20.0]
[1673905704541,20.0,23.601,23.583,20.0]
[1673905705918,20.0,23.601,23.584,20.0]
[1673905706105,20.0,23.601,23.583,20.0]
[1673905706316,20.0,23.601,23.584,17.0]
[1673905706533,20.0,23.601,23.585,20.0]
[1673905706856,17.0,23.6,23.585,20.0]
[1673905707256,17.0,23.6,23.583,20.0]
[1673905707804,20.0,23.599,23.579,20.0]
[1673905708018,17.0,23.598,23.579,20.0]
[1673905708203,20.0,23.597,23.579,20.0]
[1673905708412,17.0,23.596,23.579,20.0]
[1673905708619,20.0,23.599,23.58,20.0]
[1673905708849,20.0,23.601,23.581,37.0]
[1673905709059,49.8,23.603,23.581,58.23059325]
[1673905709270,153.7927,23.608,23.583,20.0]
[1673905709486,153.7927,23.608,23.584,17.0]
[1673905709680,51.79,23.605,23.585,20.0]
[1673905709890,20.0,23.605,23.586,20.0]
[1673905710102,20.0,23.605,23.585,20.0]
[1673905710299,20.0,23.605,23.584,20.0]
[1673905710514,17.0,23.603,23.584,20.0]
[1673905710725,20.0,23.602,23.584,20.0]
[1673905710958,20.0,23.602,23.585,20.0]
[1673905711358,20.0,23.602,23.586,17.0]
[1673905711694,20.0,23.602,23.587,20.0]
[1673905712432,51.79,23.606,23.588,58.23059325]
[1673905712635,122.0027,23.608,23.589,20.0]
[1673905712956,20.0,23.607,23.591,20.0]
[1673905713166,20.0,23.607,23.592,17.0]
[1673905713379,20.0,23.607,23.592,37.0]
[1673905715275,20.0,23.607,23.593,20.0]
[1673905715589,20.0,23.607,23.594,37.0]
[1673905716529,20.0,23.61,23.594,37.0]
[1673905716752,394.3,23.627,23.595,21.23059325]
[1673905717063,21.46196354,23.629,23.6,16.34]
[1673905717264,20.0,23.628,23.601,40.0]
[1673905717485,31.77,23.627,23.602,17.0]
[1673905717690,31.77,23.627,23.604,20.0]
[1673905717901,31.77,23.627,23.605,17.0]
[1673905717902,20.0,23.62,23.605,17.0]
[1673905718096,20.0,23.62,23.606,20.0]
[1673905718300,31.77,23.627,23.607,17.0]
[1673905718515,31.77,23.627,23.608,20.0]
[1673905718727,31.77,23.627,23.609,37.0]
[1673905718936,20.0,23.626,23.609,37.0]
[1673905721453,20.0,23.626,23.609,20.0]
[1673905721663,20.0,23.62,23.605,20.0]
[1673905721885,20.0,23.62,23.606,17.0]
[1673905722099,20.0,23.62,23.607,20.0]
[1673905722325,20.0,23.62,23.605,20.0]
[1673905722714,20.0,23.62,23.603,20.0]
[1673905723372,20.0,23.62,23.604,17.0]
[1673905723565,20.0,23.62,23.605,20.0]
[1673905723770,20.0,23.62,23.597,31.81]
[1673905723981,48.78,23.619,23.595,110.9291]
[1673905724215,20.0,23.618,23.597,20.0]
[1673905724417,48.78,23.617,23.597,20.0]
[1673905724637,20.0,23.616,23.597,20.0]
[1673905724848,31.78,23.615,23.597,20.0]
[1673905725054,20.0,23.616,23.598,20.0]
[1673905725375,17.0,23.615,23.597,20.0]
[1673905725572,20.0,23.616,23.599,21.23059325]
[1673905725781,20.0,23.616,23.6,17.0]
[1673905726417,20.0,23.616,23.601,20.0]
[1673905727039,20.0,23.618,23.601,20.0]
[1673905727248,20.0,23.618,23.603,20.0]
[1673905727458,20.0,23.618,23.604,17.0]
[1673905727893,20.0,23.618,23.605,20.0]
[1673905728201,31.78,23.617,23.595,110.9291]
[1673905728530,20.0,23.615,23.597,20.0]
[1673905728933,20.0,23.615,23.596,130.74289325]
[1673905729154,20.0,23.615,23.597,20.0]
[1673905729775,20.0,23.615,23.598,17.0]
[1673905729991,20.0,23.616,23.598,17.0]
[1673905730190,20.0,23.616,23.6,16.18]
[1673905730404,20.0,23.616,23.601,17.0]
[1673905731155,158.6291,23.621,23.602,20.0]
[1673905731383,126.8591,23.621,23.603,48.8]
[1673905731574,126.8591,23.621,23.604,20.0]
[1673905731766,126.8591,23.621,23.605,17.0]
[1673905731977,20.0,23.62,23.606,40.0]
[1673905732287,20.0,23.62,23.606,20.0]
[1673905733360,20.0,23.625,23.607,17.0]
[1673905733766,20.0,23.625,23.608,40.0]
[1673905733972,20.0,23.625,23.609,17.0]
[1673905734713,20.0,23.625,23.61,20.0]
[1673905735047,20.0,23.625,23.608,20.0]
[1673905735447,20.0,23.625,23.607,20.0]
[1673905735678,20.0,23.625,23.608,17.0]
[1673905735888,20.0,23.625,23.609,20.0]
[1673905736101,20.0,23.625,23.61,17.0]
[1673905736311,20.0,23.626,23.611,20.0]
[1673905736509,20.0,23.628,23.612,37.0]
[1673905736833,20.0,23.628,23.613,20.0]
[1673905737028,20.0,23.63,23.614,17.0]
[1673905737233,20.0,23.63,23.615,20.0]
[1673905737446,20.0,23.63,23.616,17.0]
[1673905737767,20.0,23.63,23.617,20.0]
[1673905737985,51.76,23.629,23.617,20.0]
[1673905738181,20.0,23.629,23.615,20.0]
[1673905738836,20.0,23.629,23.616,17.0]
[1673905739028,20.0,23.629,23.617,20.0]
[1673905739754,20.0,23.629,23.616,20.0]
[1673905740595,20.0,23.629,23.613,20.0]
[1673905741029,20.0,23.629,23.614,17.0]
[1673905741245,20.0,23.629,23.615,20.0]
[1673905741546,20.0,23.629,23.616,17.0]
[1673905741873,20.0,23.629,23.617,20.0]
[1673905742072,20.0,23.63,23.617,20.0]
[1673905742282,20.0,23.63,23.618,17.0]
[1673905742491,20.0,23.63,23.619,20.0]
[1673905742818,20.0,23.63,23.62,17.0]
[1673905743551,105.8654,23.634,23.62,17.0]
[1673905743767,31.75,23.641,23.622,20.0]
[1673905744084,31.75,23.641,23.624,20.0]
[1673905744085,20.0,23.64,23.624,20.0]
[1673905744298,31.75,23.639,23.625,20.0]
[1673905744613,20.0,23.64,23.625,37.0]
[1673905744808,20.0,23.64,23.625,85.54299414]
[1673905745765,20.0,23.64,23.625,37.0]
[1673905746908,64.2524978,23.64,23.625,37.0]
[1673905749431,20.0,23.638,23.61,36.34]
[1673905749635,17.0,23.637,23.614,111.9318]
[1673905749845,20.0,23.635,23.615,20.0]
[1673905750376,20.0,23.635,23.615,66.80966081]
[1673905750582,110.5785,23.634,23.615,88.04025406]
[1673905750796,20.0,23.633,23.616,17.0]
[1673905751230,20.0,23.633,23.617,20.0]
[1673905751445,20.0,23.633,23.618,17.0]
[1673905751640,154.8309978,23.634,23.619,20.0]
[1673905751855,154.8309978,23.634,23.62,17.0]
[1673905752691,154.8309978,23.634,23.621,20.0]
[1673905753011,154.8309978,23.634,23.622,17.0]
[1673905753335,154.8309978,23.634,23.623,20.0]
[1673905753948,20.0,23.633,23.623,20.0]
[1673905754156,154.8309978,23.634,23.623,20.0]
[1673905754490,44.2524978,23.634,23.624,17.0]
[1673905754681,44.2524978,23.634,23.625,20.0]
[1673905756907,44.2524978,23.634,23.626,17.0]
[1673905757120,44.2524978,23.634,23.627,20.0]
[1673905759309,44.2524978,23.634,23.617,46.80966081]
[1673905759516,44.2524978,23.634,23.618,20.0]
[1673905759728,20.0,23.633,23.618,20.0]
[1673905760796,51.76,23.633,23.618,20.0]
[1673905760983,96.0124978,23.633,23.618,20.0]
[1673905761194,44.2524978,23.633,23.618,66.80966081]
[1673905761406,44.2524978,23.633,23.619,20.0]
[1673905761624,44.2524978,23.633,23.619,41.23059325]
[1673905761837,44.2524978,23.633,23.621,20.0]
[1673905762167,44.2524978,23.633,23.622,17.0]
[1673905762880,44.2524978,23.633,23.62,17.0]
[1673905764052,44.2524978,23.633,23.621,20.0]
[1673905764264,44.2524978,23.633,23.622,17.0]
[1673905764876,44.2524978,23.633,23.623,51.77]
[1673905765090,44.2524978,23.633,23.624,17.0]
[1673905765302,44.2524978,23.633,23.625,20.0]
[1673905765528,44.2524978,23.633,23.626,17.0]
[1673905765837,44.2524978,23.633,23.628,20.0]
[1673905766042,44.2524978,23.633,23.629,37.0]
[1673905766255,44.2524978,23.633,23.629,20.0]
[1673905766667,44.2524978,23.633,23.624,20.0]
[1673905766996,44.2524978,23.633,23.625,17.0]
[1673905767204,44.2524978,23.633,23.626,20.0]
[1673905768678,44.2524978,23.633,23.627,17.0]
[1673905768869,44.2524978,23.633,23.628,20.0]
[1673905769415,44.2524978,23.633,23.629,21.23059325]
[1673905769726,44.2524978,23.633,23.63,17.0]
[1673905769939,44.2524978,23.633,23.63,63.80966081]
[1673905770136,44.2524978,23.633,23.63,46.80966081]
[1673905770464,44.2524978,23.633,23.628,20.0]
[1673905770651,20.0,23.632,23.622,20.0]
[1673905771080,64.2524978,23.632,23.622,20.0]
[1673905771806,44.2524978,23.632,23.623,20.0]
[1673905774239,44.2524978,23.632,23.622,40.0]
[1673905775583,44.2524978,23.632,23.623,20.0]
[1673905775795,44.2524978,23.632,23.624,20.0]
[1673905777496,44.2524978,23.632,23.621,46.80966081]
[1673905777709,20.0,23.631,23.609,20.0]
[1673905777903,37.0,23.631,23.614,158.74146081]
[1673905778643,37.0,23.631,23.615,20.0]
[1673905779387,81.2524978,23.631,23.615,20.0]
[1673905779580,113.0124978,23.631,23.614,158.74146081]
[1673905779795,113.0124978,23.631,23.615,20.0]
[1673905780315,113.0124978,23.631,23.616,20.0]
[1673905781168,96.0124978,23.631,23.616,20.0]
[1673905781382,20.0,23.629,23.616,20.0]
[1673905781696,20.0,23.629,23.617,20.0]
[1673905781906,20.0,23.629,23.618,20.0]
[1673905782107,20.0,23.629,23.616,66.80966081]
[1673905782323,17.0,23.628,23.616,66.80966081]
[1673905782646,20.0,23.627,23.616,66.80966081]
[1673905783257,64.2524978,23.627,23.616,66.80966081]
[1673905784110,48.77,23.626,23.608,38.59583798]
[1673905784303,48.77,23.626,23.606,112.8352]
[1673905784519,20.0,23.625,23.606,112.8352]
[1673905784747,31.77,23.624,23.606,134.06579325]
[1673905784960,51.77,23.625,23.606,134.06579325]
[1673905785171,64.2524978,23.625,23.607,31.79]
[1673905785352,64.2524978,23.625,23.61,16.34]
[1673905785567,44.2524978,23.625,23.612,20.0]
[1673905785906,44.2524978,23.625,23.613,38.23059325]
[1673905786307,44.2524978,23.625,23.614,20.0]
[1673905786639,44.2524978,23.625,23.614,41.23059325]
[1673905788947,44.2524978,23.625,23.615,41.23059325]
[1673905789463,44.2524978,23.625,23.616,20.0]
[1673905792816,17.0,23.624,23.612,20.0]
[1673905793027,20.0,23.623,23.611,20.0]
[1673905793257,20.0,23.623,23.609,20.0]
[1673905793258,64.2524978,23.623,23.609,20.0]
[1673905795757,64.2524978,23.623,23.608,20.0]
[1673905795970,64.2524978,23.623,23.607,20.0]
[1673905797993,64.2524978,23.623,23.608,20.0]
[1673905798303,44.2524978,23.623,23.609,21.23059325]
[1673905798629,44.2524978,23.623,23.61,20.0]
[1673905799021,44.2524978,23.623,23.611,21.23059325]
[1673905799244,44.2524978,23.623,23.612,20.0]
[1673905799649,44.2524978,23.623,23.612,62.4611865]
[1673905799861,31.77,23.622,23.612,21.23059325]
[1673905800069,17.0,23.621,23.603,38.59583798]
[1673905800289,17.0,23.621,23.604,21.23059325]
[1673905800501,20.0,23.62,23.604,21.23059325]
[1673905801452,20.0,23.62,23.6,16.34]
[1673905801453,17.0,23.619,23.6,16.34]
[1673905801661,17.0,23.619,23.604,21.23059325]
[1673905801974,20.0,23.618,23.604,21.23059325]
[1673905802201,20.0,23.616,23.605,20.0]
[1673905802809,17.0,23.615,23.605,20.0]
[1673905803466,20.0,23.614,23.605,20.0]
[1673905804192,44.2524978,23.615,23.605,41.23059325]
[1673905805012,20.0,23.614,23.605,41.23059325]
[1673905805567,44.2524978,23.614,23.605,41.23059325]
[1673905805751,44.2524978,23.614,23.606,21.23059325]
[1673905805964,44.2524978,23.614,23.607,17.0]
[1673905806298,44.2524978,23.614,23.608,41.23059325]
[1673905807671,44.2524978,23.614,23.608,20.0]
[1673905807977,44.2524978,23.614,23.607,21.23059325]
[1673905808188,44.2524978,23.614,23.583,110.0662]
[1673905808189,71.78,23.613,23.583,110.0662]
[1673905808501,16.34,23.61,23.583,110.0662]
[1673905808701,20.0,23.608,23.583,110.0662]
[1673905808899,48.79,23.607,23.583,110.0662]
[1673905809109,16.34,23.6,23.583,110.0662]
[1673905809332,20.0,23.599,23.583,110.0662]
[1673905810282,20.0,23.599,23.584,20.0]
[1673905810477,51.8,23.599,23.584,20.0]
[1673905810695,31.8,23.599,23.584,20.0]
[1673905810898,31.8,23.603,23.585,20.0]
[1673905811108,31.8,23.603,23.586,37.0]
[1673905811331,31.8,23.603,23.587,20.0]
[1673905812599,20.0,23.602,23.588,20.0]
[1673905813951,31.8,23.603,23.588,20.0]
[1673905814163,20.0,23.602,23.588,20.0]
[1673905814921,31.8,23.603,23.588,20.0]
[1673905815226,44.2524978,23.613,23.591,20.0]
[1673905815443,20.0,23.612,23.593,20.0]
[1673905815843,20.0,23.612,23.594,20.0]
[1673905816066,16.34,23.61,23.588,31.82]
[1673905816268,48.79,23.609,23.582,110.899]
[1673905816588,20.0,23.608,23.582,110.899]
[1673905816802,48.79,23.607,23.582,110.899]
[1673905817018,20.0,23.606,23.583,161.8862]
[1673905817204,20.0,23.604,23.583,161.8862]
[1673905817413,17.0,23.603,23.583,130.0662]
[1673905817639,17.0,23.603,23.585,17.0]
[1673905818062,20.0,23.604,23.586,20.0]
[1673905818386,20.0,23.604,23.587,17.0]
[1673905818592,51.79,23.606,23.587,17.0]
[1673905818807,20.0,23.606,23.588,40.0]
[1673905819117,20.0,23.606,23.59,20.0]
[1673905819330,140.1715,23.608,23.591,17.0]
[1673905819643,31.79,23.611,23.591,17.0]
[1673905819855,31.78,23.617,23.593,20.0]
[1673905820041,31.78,23.617,23.595,20.0]
[1673905820252,20.0,23.616,23.596,20.0]
[1673905820467,20.0,23.616,23.598,20.0]
[1673905820687,20.0,23.616,23.599,20.0]
[1673905822057,17.0,23.612,23.599,20.0]
[1673905822251,37.0,23.612,23.596,20.0]
[1673905822455,37.0,23.612,23.594,20.0]
[1673905822666,20.0,23.611,23.594,20.0]
[1673905822901,17.0,23.61,23.594,20.0]
[1673905824047,20.0,23.609,23.595,83.39857194]
[1673905824258,20.0,23.609,23.578,20.0]
[1673905824259,48.79,23.608,23.579,116.3364]
[1673905824473,20.0,23.607,23.58,20.0]
[1673905824666,48.79,23.606,23.58,20.0]
[1673905824878,20.0,23.605,23.58,20.0]
[1673905825087,48.8,23.604,23.58,20.0]
[1673905825297,20.0,23.603,23.58,20.0]
[1673905825510,48.8,23.602,23.58,20.0]
[1673905825726,20.0,23.601,23.58,20.0]
[1673905825937,17.0,23.6,23.58,20.0]
[1673905826365,17.0,23.6,23.581,17.0]
[1673905826685,17.0,23.6,23.582,20.0]
[1673905826882,20.0,23.601,23.583,37.0]
[1673905827104,20.0,23.601,23.584,20.0]
[1673905827294,20.0,23.601,23.585,20.0]
[1673905827511,31.8,23.604,23.585,20.0]
[1673905827718,17.0,23.603,23.585,20.0]
[1673905827945,17.0,23.603,23.586,20.0]
[1673905828131,17.0,23.603,23.587,20.0]
[1673905828994,31.8,23.604,23.588,20.0]
[1673905829186,20.0,23.605,23.589,20.0]
[1673905829519,17.0,23.604,23.589,20.0]
[1673905829715,17.0,23.604,23.587,20.0]
[1673905830361,20.0,23.603,23.584,20.0]
[1673905830675,20.0,23.601,23.584,20.0]
[1673905832229,17.0,23.6,23.583,20.0]
[1673905832439,17.0,23.6,23.581,20.0]
[1673905832649,20.0,23.599,23.581,20.0]
[1673905833519,20.0,23.599,23.582,20.0]
[1673905833701,20.0,23.599,23.583,20.0]
[1673905834869,20.0,23.599,23.581,20.0]
[1673905835066,20.0,23.599,23.582,20.0]
[1673905835284,20.0,23.599,23.583,20.0]
[1673905836333,17.0,23.598,23.583,20.0]
[1673905836546,17.0,23.598,23.584,20.0]
[1673905836750,31.8,23.6,23.584,20.0]
[1673905836972,20.0,23.606,23.585,31.82]
[1673905837180,20.0,23.607,23.585,31.82]
[1673905837181,51.79,23.612,23.59,16.18]
[1673905837396,31.78,23.615,23.591,31.81]
[1673905837593,51.78,23.617,23.592,37.0]
[1673905837802,20.0,23.617,23.593,31.81]
[1673905838021,20.0,23.617,23.595,20.0]
[1673905838234,20.0,23.617,23.597,20.0]
[1673905838443,20.0,23.617,23.598,37.0]
[1673905838867,20.0,23.612,23.598,20.0]
[1673905839066,20.0,23.612,23.597,20.0]
[1673905840126,20.0,23.612,23.596,20.0]
[1673905840767,31.78,23.615,23.597,20.0]
[1673905841080,31.78,23.619,23.601,20.0]
[1673905841283,51.77,23.62,23.602,17.0]
[1673905841493,51.77,23.62,23.602,37.03592965]
[1673905841694,20.0,23.62,23.604,20.0]
[1673905842115,20.0,23.62,23.605,57.03592965]
[1673905842327,31.77,23.624,23.606,20.0]
[1673905842650,51.77,23.627,23.608,20.0]
[1673905842860,51.77,23.627,23.609,37.0]
[1673905843075,51.77,23.627,23.609,57.03592965]
[1673905843286,51.77,23.627,23.61,20.03592965]
[1673905844427,51.77,23.627,23.611,37.0]
[1673905844643,20.0,23.627,23.612,20.0]
[1673905844861,20.0,23.627,23.613,20.0]
[1673905845700,20.0,23.627,23.611,20.0]
[1673905845889,20.0,23.625,23.611,20.0]
[1673905846315,20.0,23.625,23.608,20.0]
[1673905846752,20.0,23.625,23.609,20.03592965]
[1673905846969,20.0,23.625,23.61,20.0]
[1673905847281,20.0,23.627,23.611,40.03592965]
[1673905847493,20.0,23.627,23.611,57.03592965]
[1673905847682,20.0,23.627,23.612,40.03592965]
[1673905848033,16.34,23.62,23.609,42.64831321]
[1673905848210,31.78,23.619,23.594,111.526]
[1673905848636,17.0,23.618,23.594,111.526]
[1673905848855,51.78,23.617,23.594,111.526]
[1673905849147,20.0,23.615,23.594,111.526]
[1673905849363,48.78,23.614,23.594,111.526]
[1673905849573,20.0,23.613,23.594,111.526]
[1673905849781,20.0,23.611,23.594,111.526]
[1673905849991,20.0,23.611,23.595,20.0]
[1673905850228,17.0,23.61,23.595,20.0]
[1673905851255,20.0,23.609,23.594,111.526]
[1673905851465,48.79,23.608,23.582,150.0678]
[1673905851670,48.79,23.608,23.586,116.5053]
[1673905851887,20.0,23.607,23.586,116.5053]
[1673905852203,20.0,23.605,23.586,116.5053]
[1673905852419,17.0,23.604,23.586,116.5053]
[1673905852619,20.0,23.603,23.586,116.5053]
[1673905852830,17.0,23.602,23.586,116.5053]
[1673905853250,20.0,23.605,23.586,116.5053]
[1673905853563,17.0,23.604,23.587,20.0]
[1673905854847,112.3553,23.621,23.59,16.34]
[1673905854848,31.78,23.614,23.59,16.34]
[1673905855055,31.78,23.616,23.592,20.0]
[1673905855370,31.78,23.616,23.593,37.0]
[1673905855589,31.78,23.616,23.593,67.72]
[1673905855798,31.78,23.616,23.594,20.0]
[1673905855989,31.78,23.616,23.595,20.0]
[1673905856204,17.0,23.614,23.595,20.0]
[1673905858209,17.0,23.614,23.596,20.0]
[1673905858426,17.0,23.614,23.597,20.0]